Cogmind - Beta 10.2 @@@ ROGUE MODE // 2020.12.06 @ 12:49:42 Player: whisper Result: Destroyed by H-77 Assassin with Coil Gun Performance ------------- Evolutions (5) 2500 Regions Visited (21) 4200 Robots Destroyed (250) 1250 Value Destroyed (10533) 10533 Prototype IDs (21) 420 Alien Tech Used (1) 200 Bonus (3389) 3389 TOTAL SCORE: 22492 Bonus ------- High Alert Combat Kills 1039 Follower Combat Kills 779 Entered Garrisons 200 Used RIF Installer 500 Met Data Miner 300 Met Zhirov 300 Met R17 at Cetus 500 Friendly Fire -229 Cogmind --------- Core Integrity 0/1000 Matter 114/300 Energy 465/600 System Corruption 7% Temperature Cool (2) Movement Core (500) Ox9 Location -4/Proximity Caves Parts ------- > --- POWER (2) -------- (None) > --- PROPULSION (5) --- (None) > --- UTILITY (9) ------ Medium Storage Unit Energy Well Enhanced Optical Array > --- WEAPON (2) ------- Magnetic Acceleration Cannon Enhanced Gauss Cannon > --- INVENTORY (8) ---- Makeshift Power Source Improved Coolant Injector Improved Energy Well (600) High-capacity Matter Pod (200) Long-range Sensor Array Improved System Backup Module Gauss Rifle Rocket Launcher Peak State ------------ > --- POWER ------------ Light Angular Momentum Engine Micro Fission Core > --- PROPULSION ------- Armored Medium Treads Armored Medium Treads Armored Medium Treads Armored Medium Treads Armored Medium Treads > --- UTILITY ---------- Medium Storage Unit Medium Storage Unit Large Storage Unit Enhanced Optical Array Targeting Computer Targeting Computer Improved Targeting Computer Improved Kinecellerator Advanced Shield Generator > --- WEAPON ----------- Enhanced Gauss Cannon Enhanced Gauss Cannon > --- INVENTORY -------- Makeshift Power Source Compact Wheel Advanced Heat Sink Improved Coolant Injector Energy Well Improved Energy Well High-capacity Matter Pod Long-range Sensor Array Improved System Backup Module Combat Drone Bay Gauss Rifle Improved KE Penetrator Magnetic Acceleration Cannon Enhanced Gauss Cannon Heavy Shock Bomb Launcher Rocket Launcher Phasing Sabre [Rating: 84] Favorites ----------- Power Light Angular Momentum Engine Engine Light Angular Momentum Engine Power Core Micro Fission Core Reactor Antimatter Reactor Propulsion Armored Medium Treads Treads Armored Medium Treads Leg Carbon-fiber Leg Wheel Armored Huge Wheel Utility Large Storage Unit Device Advanced Sensor Array Storage Large Storage Unit Processor Targeting Computer Hackware Relay Coupler [Sentry] Protection Improved Medium Armor Plating Weapon Enhanced Gauss Cannon Energy Gun Improved EM Shotgun Energy Cannon Improved EM Pulse Cannon Ballistic Gun Flak Gun Ballistic Cannon Enhanced Gauss Cannon Launcher Rocket Launcher Special Weapon Remote Datajack Impact Weapon Hammer Slashing Weapon Katana Special Melee Weapon Improved Datajack Build | -11 -10 -10 -9 -8 -8 -8 -7 -7 -7 -7 -6 -6 -6 -6 -6 -6 -5 -5 -5 -5 -4 ------- Run | Scr Mat Min Mat Mat Gar Mat Fac Low Low Dat Pro Fac Ext Cet Arc Hub Fac Upp Upp War Pro Slots Evolved 10 | . . . 2 2 . . 2 . . . . 2 . . . . 2 . . . . Power 1 | . . . . . . . . . . . . 1 . . . . . . . . . Propulsion 2 | . . . . . . . 2 . . . . . . . . . . . . . . Utility 7 | . . . 2 2 . . . . . . . 1 . . . . 2 . . . . Weapon . | . . . . . . . . . . . . . . . . . . . . . . Parts Attached 351 | 6 12 4 18 39 23 22 32 8 5 . 5 45 20 27 1 12 49 5 2 1 15 Power 36 | 1 . 1 1 5 2 1 . 1 1 . . 7 2 4 . 2 8 . . . . Engine 24 | 1 . 1 1 4 2 . . 1 1 . . 3 1 3 . . 6 . . . . Core 10 | . . . . 1 . 1 . . . . . 3 1 . . 2 2 . . . . Reactor 2 | . . . . . . . . . . . . 1 . 1 . . . . . . . Propulsion 75 | 2 4 1 7 7 2 4 3 1 . . . 15 8 5 1 5 8 . . . 2 Treads 27 | . . . 5 7 2 1 . . . . . . . 1 . 4 7 . . . . Leg 40 | 2 3 1 2 . . . 2 1 . . . 15 8 4 1 . . . . . 1 Wheel 8 | . 1 . . . . 3 1 . . . . . . . . 1 1 . . . 1 Hover . | . . . . . . . . . . . . . . . . . . . . . . Flight . | . . . . . . . . . . . . . . . . . . . . . . Utility 120 | 1 5 . 3 17 12 11 14 4 2 . 1 12 3 7 . 2 14 3 2 1 6 Device 73 | . 1 . . 11 11 6 9 3 2 . 1 8 . 5 . 2 5 2 2 1 4 Storage 16 | 1 3 . . 2 . 2 1 1 . . . 1 . . . . 3 1 . . 1 Processor 14 | . . . 1 3 . . 2 . . . . . 2 1 . . 5 . . . . Hackware 2 | . . . . . . 1 1 . . . . . . . . . . . . . . Protection 15 | . 1 . 2 1 1 2 1 . . . . 3 1 1 . . 1 . . . 1 Artifact . | . . . . . . . . . . . . . . . . . . . . . . Weapon 120 | 2 3 2 7 10 7 6 15 2 2 . 4 11 7 11 . 3 19 2 . . 7 Energy Gun 27 | . 1 1 3 7 2 2 3 . . . . . 1 2 . . 5 . . . . Energy Cannon 18 | . . . 2 . 2 . 6 1 2 . 1 3 1 . . . . . . . . Ballistic Gun 19 | 2 . . . 2 . 1 . . . . 1 4 4 4 . . . . . . 1 Ballistic Cannon 28 | . 1 . 1 . . 2 1 . . . . 3 1 3 . 2 10 1 . . 3 Launcher 15 | . 1 1 . 1 2 . . . . . 2 1 . 2 . . 3 . . . 2 Special Weapon 2 | . . . . . . . 2 . . . . . . . . . . . . . . Impact Weapon 1 | . . . 1 . . . . . . . . . . . . . . . . . . Slashing Weapon 9 | . . . . . 1 . 3 1 . . . . . . . 1 1 1 . . 1 Piercing Weapon . | . . . . . . . . . . . . . . . . . . . . . . Special Melee Weapon 1 | . . . . . . 1 . . . . . . . . . . . . . . . Unidentified Prototypes 11 | . . . 3 1 . . . . 1 . . . . 4 1 . 1 . . . . Parts Lost 98 | . 3 . 1 . 7 8 1 . 1 . 1 14 2 8 8 3 17 . . . 24 Power 18 | . . . . . 1 1 1 . 1 . 1 2 . 2 2 2 3 . . . 2 Propulsion 28 | . 2 . . . 2 3 . . . . . 5 . 2 3 . 4 . . . 7 Utility 27 | . . . . . 1 1 . . . . . 4 1 2 1 1 6 . . . 10 Weapon 25 | . 1 . 1 . 3 3 . . . . . 3 1 2 2 . 4 . . . 5 Highest Loss Streak 21 | . 2 . 1 . 6 5 1 . 1 . 1 3 2 6 8 2 5 . . . 21 Average Slot Usage (%) 94 | . 92 100 98 99 96 95 91 91 87 85 84 94 99 90 82 83 94 100 100 100 84 Engine 6 | . 14 14 11 7 8 7 . 7 6 7 6 3 5 4 4 . 5 5 5 5 . Core 2 | . . . . 1 . . 6 . . . . 6 6 5 . 7 2 5 5 5 4 Treads 12 | . . . 17 18 17 12 . . . . . . . 5 4 21 25 27 27 27 23 Leg 8 | . 27 28 4 . . . 4 14 14 14 14 27 31 18 15 1 . . . . . Wheel 2 | . . . . . . 3 18 7 7 7 7 . . . . 5 . . . . . Device 7 | . 1 . . 8 6 7 6 6 7 7 7 11 7 6 4 6 8 11 11 11 9 Storage 16 | . 17 28 22 18 18 18 15 15 14 14 14 12 12 12 12 12 15 16 16 16 16 Processor 18 | . . . 10 27 27 27 22 23 21 21 21 12 16 18 18 18 21 22 22 22 14 Protection 2 | . 7 . 10 . . . . . . . . 4 6 5 6 3 . . . . 3 Energy Gun 3 | . 4 11 8 15 6 2 4 . . . . . 1 . . . . . . . . Energy Cannon 3 | . . . 2 . 9 10 4 13 14 14 13 2 . . . . . . . . . Ballistic Gun 2 | . 15 14 . 2 . 1 . . . . . 8 7 8 4 . . . . . . Ballistic Cannon 3 | . 3 . 6 . . 2 2 . . . . 1 2 1 4 5 9 10 11 11 9 Naked Turns . | . . . . . . . . . . . . . . . . . . . . . . Heaviest Build 80 | 12 56 41 51 51 53 53 55 54 56 56 56 77 68 80 80 68 79 72 71 67 66 Greatest Support 138 | 20 20 20 43 43 40 43 48 28 28 28 28 80 95 95 80 120 138 81 81 81 81 Greatest Overweight (x) 4 | . 4 2 2 2 1 4 2 1 1 1 1 1 . . 1 1 3 . . . 2 Average Overweight (x) . | . 1 1 1 1 . 1 . 1 1 1 1 . . . . . . . . . . Largest Inventory Capacity 24 | 6 18 16 16 16 16 16 16 16 16 16 16 16 16 16 16 16 24 18 18 18 18 Average Capacity 16 | 4 12 16 16 16 16 16 16 16 16 16 16 16 16 16 16 16 18 18 18 18 17 Most Carried 18 | 6 12 14 16 16 16 16 16 16 16 16 16 16 16 16 15 16 18 18 18 18 18 Average Carried 15 | 2 9 13 15 15 14 15 15 15 15 16 16 15 15 15 15 15 16 17 17 18 16 Final Capacity 18 | 6 16 16 16 16 16 16 16 16 16 16 16 16 16 16 16 16 18 18 18 18 8 Final Carried 18 | 6 12 14 16 16 16 15 16 16 16 16 16 16 16 15 15 16 18 18 18 18 8 Class Distribution -------------------- 58% | Mutant 40% | Scavenger-Mutant Dominant Class ---------------- Mutant | -10/Materials Mutant | -10/Mines Mutant | -9/Materials Mutant | -8/Materials Mutant | -8/Garrison Mutant | -8/Materials Mutant | -7/Factory Mutant | -7/Lower Caves Mutant | -7/Lower Caves Mutant | -7/Data Miner Mutant | -6/Proximity Caves Scavenger-Mutant | -6/Factory Scavenger-Mutant | -6/Extension Scavenger-Mutant | -6/Cetus Scavenger-Mutant | -6/Archives Mutant | -6/Hub_04(d) Scavenger-Mutant | -5/Factory Scavenger-Mutant | -5/Upper Caves Scavenger-Mutant | -5/Upper Caves Scavenger-Mutant | -5/Warlord Scavenger-Mutant | -4/Proximity Caves Resources | -11 -10 -10 -9 -8 -8 -8 -7 -7 -7 -7 -6 -6 -6 -6 -6 -6 -5 -5 -5 -5 -4 ----------- Run | Scr Mat Min Mat Mat Gar Mat Fac Low Low Dat Pro Fac Ext Cet Arc Hub Fac Upp Upp War Pro Matter Collected 7209 | 169 257 101 552 511 257 359 360 62 83 . 58 859 521 619 11 284 1650 86 38 . 372 Remotely . | . . . . . . . . . . . . . . . . . . . . . . Salvage Created 9589 | . 464 112 705 1543 216 1021 256 80 262 . 91 1257 489 447 223 122 1890 . 8 . 403 Parts 520 | . 29 11 35 77 20 57 12 14 10 . 4 71 32 28 7 6 91 . . . 16 Haulers Intercepted 12 | . 2 . 5 4 . . . . . . . . . . . . 1 . . . . Recyclers Shooed 9 | . 1 . . 1 . . . . . . . 2 . . . . 5 . . . . Parts Field Recycled . | . . . . . . . . . . . . . . . . . . . . . . Retrieved Matter . | . . . . . . . . . . . . . . . . . . . . . . Parts Self-Destructed 39 | . . . . . . . . . 6 . 4 . . . . . . . . . 29 Prevented 6 | . . . . . . . . . 5 . . . . . . . . . . . 1 Kills | -11 -10 -10 -9 -8 -8 -8 -7 -7 -7 -7 -6 -6 -6 -6 -6 -6 -5 -5 -5 -5 -4 ------- Run | Scr Mat Min Mat Mat Gar Mat Fac Low Low Dat Pro Fac Ext Cet Arc Hub Fac Upp Upp War Pro Combat Hostiles Destroyed 201 | . 11 5 11 24 11 20 4 3 4 . 7 23 7 17 4 4 31 . 2 . 13 Melee 1 | . . . 1 . . . . . . . . . . . . . . . . . . Guns 73 | . 9 2 2 17 3 7 3 . . . . 14 5 7 2 . 1 . . . 1 Cannons 63 | . . . 7 . 3 9 1 . 3 . 1 4 2 1 1 4 17 . 2 . 8 AOE 55 | . 2 3 . 6 5 3 . 3 . . 6 3 . 9 1 . 10 . . . 4 Classes Destroyed 17 | . 5 . 3 4 . 1 . 1 . . . 1 1 . . . 1 . . . . Worker 9 | . . . . 2 . 2 . . . . . 3 . . . . 2 . . . . Builder 3 | . . . . . . 1 . . . . . 1 . . . . 1 . . . . Tunneler 1 | . 1 . . . . . . . . . . . . . . . . . . . . Hauler 12 | . 2 . 5 4 . . . . . . . . . . . . 1 . . . . Recycler 7 | . . . . 2 . . . . . . . . . . . . 5 . . . . Operator 6 | . 2 . 1 1 . 1 . . . . . 1 . . . . . . . . . Watcher 10 | . . . 1 2 . . 1 . . . . . 1 1 . . 4 . . . . Swarmer 48 | . 5 3 . 4 8 . . . . . 3 3 . 11 . . 4 . . . 7 Grunt 84 | . 6 2 8 12 2 14 2 . 2 . 4 13 2 . 4 . 13 . . . . Brawler 3 | . . . 1 . . 1 . . . . . . . . . . . . . . 1 Duelist 7 | . . . . 2 . 1 1 . 1 . . . . . . . . . . . 2 Protector 1 | . . . . . . . . . . . . . . . . . 1 . . . . Sentry 24 | . . . 2 4 . 4 1 1 1 . . 4 2 . . 3 1 . . . 1 Hunter 16 | . . . . 2 1 . . . . . . . 2 1 . . 6 . 2 . 2 Programmer 9 | . . . . . . . . . . . . 3 . . . 1 5 . . . . Behemoth 2 | . . . . . . . . . . . . . 1 . . . 1 . . . . Cetus Guard 5 | . . . . . . . . . . . . . . 5 . . . . . . . Thief 3 | . . . . . . . . 3 . . . . . . . . . . . . . Best Kill Streak 10 | . 3 3 5 6 4 7 2 3 3 . 4 7 3 8 3 2 10 . 2 . 4 Combat Bots Only 8 | . 3 3 2 5 4 6 2 3 3 . 4 4 3 8 3 2 8 . 2 . 4 Max Kills in Single Turn 4 | . 1 3 1 4 2 2 1 4 1 . 2 2 1 4 2 1 2 . 1 . 4 Gunslinging . | . . . . . . . . . . . . . . . . . . . . . . Exploded 4 | . 1 3 . 2 2 2 . 3 . . 2 2 . 4 1 . 2 . . . 4 Melee 1 | . . . 1 . . . . . . . . . . . . . . . . . . Uniques/NPCs Destroyed . | . . . . . . . . . . . . . . . . . . . . . . Combat | -11 -10 -10 -9 -8 -8 -8 -7 -7 -7 -7 -6 -6 -6 -6 -6 -6 -5 -5 -5 -5 -4 -------- Run | Scr Mat Min Mat Mat Gar Mat Fac Low Low Dat Pro Fac Ext Cet Arc Hub Fac Upp Upp War Pro Damage Taken 19995 | . 655 112 484 1176 746 1235 322 157 297 . 95 2041 634 2062 1587 593 2984 . 238 60 4517 Core 2280 | . 128 39 71 173 58 125 51 57 53 . 38 130 45 108 145 58 205 . . . 796 Absorbed by Shields 458 | . . . . . . . . . . . . . 109 . . . . . 86 . 263 Reduced by Siege Mode 45 | . . . . . . . . . . . . . . 45 . . . . . . . Core Remaining (%) 60 | 100 . 33 82 . . 35 . . . . 71 . . . . 42 . . . . . Volleys Fired 665 | . 61 6 52 85 31 54 18 2 8 . 9 69 33 49 5 20 121 2 8 . 32 Largest 2 | . 2 2 2 2 2 2 2 2 2 . 2 2 2 2 2 2 2 1 2 . 2 Hottest 275 | . 60 60 113 112 136 136 149 138 138 . 97 138 108 275 92 106 114 57 114 . 114 Shots Fired 1191 | . 89 11 87 168 51 107 26 4 14 . 10 133 58 89 10 40 217 2 16 . 59 Gun 630 | . 84 10 38 167 24 62 11 . . . 1 73 38 57 5 . 54 . . . 6 Cannon 519 | . 2 . 49 . 21 45 11 4 14 . 1 57 20 26 5 40 155 2 16 . 51 Launcher 38 | . 3 1 . 1 6 . . . . . 8 3 . 6 . . 8 . . . 2 Special 4 | . . . . . . . 4 . . . . . . . . . . . . . . Kinetic 702 | . 72 5 38 36 . 47 3 . . . 1 95 43 82 10 40 155 2 16 . 57 Thermal 172 | . . . 14 83 42 22 7 . . . . . 3 1 . . . . . . . Explosive 36 | . 3 1 . 1 6 . . . . . 8 3 . 6 . . 8 . . . . Electromagnetic 277 | . 14 5 35 48 3 38 12 4 14 . 1 35 12 . . . 54 . . . 2 Robot Hit Streak 31 | . 10 5 15 19 5 21 16 3 5 . 8 19 17 31 18 10 23 . 9 . 11 Robot Miss Streak 6 | . 3 1 3 5 2 1 1 1 1 . 3 6 4 4 1 2 3 . 1 . 2 Penetration Max 1 | . . . . . . . . . . . . . 1 1 1 . 1 . . . 1 Secondary Targets 6 | . . 1 . 1 . 2 . . . . . 1 1 . . . . . . . . Max Gunslinging Chain 1 | . . 1 . 1 . 1 . . . . . 1 1 . . . . . . . . Shots Hit Robots 927 | . 62 7 70 134 26 91 23 3 8 . 6 109 49 69 7 31 167 . 13 . 52 Core Hits 560 | . 28 7 23 72 16 40 10 4 5 . 23 114 39 43 6 8 91 . 4 . 27 Critical Hits 56 | . . . 1 2 1 3 . . . . . 3 1 9 4 . 18 . 2 . 12 Critical Kills 18 | . . . . . 1 3 . . . . . 1 1 3 2 . 6 . . . 1 Critical Parts Destroyed 33 | . . . . 2 . . . . . . . 2 . 4 2 . 12 . 2 . 9 Melee Attacks 40 | . . . 9 . 1 8 11 3 . . . . . . . 1 2 1 . . 4 Impact 9 | . . . 9 . . . . . . . . . . . . . . . . . . Slashing 23 | . . . . . 1 . 11 3 . . . . . . . 1 2 1 . . 4 Piercing . | . . . . . . . . . . . . . . . . . . . . . . Sneak Attacks 8 | . . . 2 . . 6 . . . . . . . . . . . . . . . Combat Hostiles . | . . . . . . . . . . . . . . . . . . . . . . Follow-up Attacks . | . . . . . . . . . . . . . . . . . . . . . . Damage Inflicted 26963 | . 767 270 1330 3221 750 1733 530 179 270 . 857 3430 1338 2380 273 906 6112 . 422 . 2195 Guns 8770 | . 523 98 387 2204 159 698 216 . . . 31 1543 852 1022 144 . 612 . . . 281 Cannons 11002 | . . . 673 . 162 777 194 25 233 . 32 1127 398 611 129 906 3876 . 422 . 1437 Explosions 6656 | . 244 172 43 1017 400 258 . 154 37 . 794 760 61 747 . . 1620 . . . 349 Melee 494 | . . . 227 . 29 . 120 . . . . . . . . . . . . . 118 Ramming 41 | . . . . . . . . . . . . . 27 . . . 4 . . . 10 Kinetic 13730 | . 410 27 459 428 . 735 50 . . . 31 1830 932 1633 273 906 3876 . 422 . 1718 Thermal 4262 | . . 55 309 1772 280 554 166 154 37 . . 318 120 . . . 470 . . . 27 Explosive 3899 | . 244 117 . 163 400 . . . . . 794 284 . 747 . . 1150 . . . . Electromagnetic 4537 | . 113 71 335 858 41 444 194 25 233 . 32 998 259 . . . 612 . . . 322 Impact 227 | . . . 227 . . . . . . . . . . . . . . . . . . Slashing 267 | . . . . . 29 . 120 . . . . . . . . . . . . . 118 Piercing . | . . . . . . . . . . . . . . . . . . . . . . Highest Corruption 7 | . . . . . . . 2 2 2 2 2 1 1 1 1 1 5 . . . 7 Average Corruption 1 | . . . . . . . 1 2 2 2 2 1 1 1 1 1 2 . . . 5 Corruption Purged 5 | . . . . . . . . . . . . . . . . . 5 . . . . Effects 84 | . . . . . . . 4 5 13 3 4 4 7 1 1 2 33 . . . 7 Message Errors 29 | . . . . . . . 1 1 5 2 1 2 6 . 1 1 9 . . . . Matter Fused 3 | . . . . . . . . . . . . . . . . . 2 . . . 1 Heat Flow Errors 12 | . . . . . . . . 1 5 . 2 . . . . . 3 . . . 1 Energy Discharges 12 | . . . . . . . 1 2 1 1 . 1 . . . . 4 . . . 2 Data Loss (minor) 12 | . . . . . . . . 1 . . 1 1 . 1 . . 7 . . . 1 Data Loss (major) 1 | . . . . . . . . . . . . . . . . . 1 . . . . Targeting Errors 11 | . . . . . . . 2 . 1 . . . . . . 1 5 . . . 2 Weapon Failures 4 | . . . . . . . . . 1 . . . 1 . . . 2 . . . . Overload Shots 2 | . . . . . . . . . . . . . . 2 . . . . . . . Effects 3 | . . . . . . . . . . . . . . 3 . . . . . . . Meltdown 3 | . . . . . . . . . . . . . . 3 . . . . . . . Overflow Damage 673 | . 11 4 6 186 28 9 . . . . . 134 25 24 . 22 156 . 23 . 45 Projectiles 172 | . . . . . . 5 . . . . . . 18 . . 22 59 . 23 . 45 Explosions 488 | . 11 4 . 186 28 4 . . . . . 134 . 24 . . 97 . . . . Melee 13 | . . . 6 . . . . . . . . . 7 . . . . . . . . Knockbacks 59 | . . . 3 . . 5 2 . . . . 3 4 . 1 . 24 . 6 . 11 Impact 1 | . . . 1 . . . . . . . . . . . . . . . . . . Kinetic 56 | . . . 1 . . 5 2 . . . . 3 4 . 1 . 23 . 6 . 11 Secondary 2 | . . . 1 . . . . . . . . . . . . . 1 . . . . Self-Inflicted Damage 466 | . 9 20 . 85 81 13 . 50 58 . . 74 . 14 . . 27 . . . 35 Shots 14 | . 1 1 . 2 3 1 . 1 1 . . 1 . 1 . . 1 . . . 1 Rammed 2 | . . . . . . . . . . . . . . . . . 1 . . . 1 Targets Rammed 3 | . . . . . . . . . . . . . 1 . . . 1 . . . 1 Kicked 1 | . . . . . . . . . . . . . 1 . . . . . . . . Crushed . | . . . . . . . . . . . . . . . . . . . . . . Highest Temperature 477 | . 88 76 203 234 477 213 213 191 245 . 265 297 297 423 183 365 257 12 315 . 81 Average Temperature 75 | . 27 34 60 56 153 35 59 63 95 . 107 105 102 102 82 217 51 7 167 . 19 Received Heat Transfer 3783 | . 198 36 246 495 81 612 42 . 30 . 45 654 204 9 108 192 390 . . . 441 Effects 12 | . . . . 3 1 . . . . . . 1 . 6 . 1 . . . . . Shutdowns 2 | . . . . . . . . . . . . . . 1 . 1 . . . . . Energy Bleed 4 | . . . . 1 . . . . . . . 1 . 2 . . . . . . . Interference 6 | . . . . 2 1 . . . . . . . . 3 . . . . . . . Siege Activations 3 | . . . . . . . . . . . . . . 1 2 . . . . . . Total Turns 46 | . . . . . . . . . . . . . . 32 14 . . . . . . Longest Duration 32 | . . . . . . . . . . . . . . 32 11 . . . . . . Robots Corrupted 8 | . . . 1 . . 1 . . 1 . . 2 . . . . 3 . . . . Combat Hostiles 8 | . . . 1 . . 1 . . 1 . . 2 . . . . 3 . . . . Parts Fried 27 | . . . 2 4 . 2 1 . 2 . . 5 2 . . . 8 . . . 1 Impact Corruptions 3 | . . . 2 . . . . . . . . . 1 . . . . . . . . Robots Melted 1 | . . . . 1 . . . . . . . . . . . . . . . . . Combat Hostiles 1 | . . . . 1 . . . . . . . . . . . . . . . . . Parts Melted 9 | . . . 1 5 . 2 1 . . . . . . . . . . . . . . Heat Transferred 6015 | . . 50 531 2511 555 918 375 150 50 . . 300 175 . . . 350 . . . 50 Parts Sabotaged . | . . . . . . . . . . . . . . . . . . . . . . Parts Stolen 1 | . . . . . . . . 1 . . . . . . . . . . . . . Parts Stripped . | . . . . . . . . . . . . . . . . . . . . . . Power Chain Reactions 13 | . . 1 1 2 . 2 . 1 1 . . 1 1 . . . 2 . . . 1 Missiles Intercepted . | . . . . . . . . . . . . . . . . . . . . . . Alert | -11 -10 -10 -9 -8 -8 -8 -7 -7 -7 -7 -6 -6 -6 -6 -6 -6 -5 -5 -5 -5 -4 ------- Run | Scr Mat Min Mat Mat Gar Mat Fac Low Low Dat Pro Fac Ext Cet Arc Hub Fac Upp Upp War Pro Peak Influence 946 | . 168 192 288 469 634 802 220 . . . . 546 538 519 327 244 946 . . . . Initial 308 | . . 12 74 61 304 308 159 . . . . 63 267 228 207 93 114 . . . . Average 325 | . 63 172 132 303 489 407 118 . . . . 307 373 398 245 121 662 . . . . Maximum Alert Level 3 | . . . 1 2 2 3 1 . . . . 2 2 2 1 1 3 . . . . Low Security (%) 33 | 100 100 100 75 18 . . 86 . . . . 7 . . . 90 11 . . . . Level 1 32 | . . . 24 58 26 53 13 . . . . 74 54 32 100 9 . . . . . Level 2 24 | . . . . 23 73 40 . . . . . 18 45 67 . . 28 . . . . Level 3 9 | . . . . . . 5 . . . . . . . . . . 59 . . . . Level 4 . | . . . . . . . . . . . . . . . . . . . . . . Level 5 . | . . . . . . . . . . . . . . . . . . . . . . High Security . | . . . . . . . . . . . . . . . . . . . . . . Max Security . | . . . . . . . . . . . . . . . . . . . . . . Squads Dispatched 34 | . 2 . 1 3 . 4 2 . . . . 5 2 . . 3 12 . . . . Investigation 4 | . . . . . . . 1 . . . . 2 1 . . . . . . . . Extermination 7 | . . . . . . . 1 . . . . 1 . . . 1 4 . . . . Reinforcement 18 | . 2 . 1 3 . 3 . . . . . 1 1 . . 2 5 . . . . Assault 4 | . . . . . . 1 . . . . . . . . . . 3 . . . . Garrison 1 | . . . . . . . . . . . . 1 . . . . . . . . . Intercept . | . . . . . . . . . . . . . . . . . . . . . . Construction Impeded 7 | . . . . 1 . . . . . . . 1 1 . . 1 3 . . . . Haulers Reinforced 1 | . . . . . . . . . . . . . . . . . 1 . . . . Stealth | -11 -10 -10 -9 -8 -8 -8 -7 -7 -7 -7 -6 -6 -6 -6 -6 -6 -5 -5 -5 -5 -4 --------- Run | Scr Mat Min Mat Mat Gar Mat Fac Low Low Dat Pro Fac Ext Cet Arc Hub Fac Upp Upp War Pro Distress Signals 16 | . 1 . 3 2 . 1 . . . . . 1 . 2 . 1 4 . . . 1 Communications Jammed . | . . . . . . . . . . . . . . . . . . . . . . Distress Signals . | . . . . . . . . . . . . . . . . . . . . . . Times Spotted 367 | . 27 5 25 37 11 30 9 5 4 . 7 32 18 28 23 11 56 . 2 . 37 Peak Tracking Total 16 | . 4 3 6 5 4 8 3 4 3 . 4 5 4 5 16 4 6 . 2 . 13 Tactical Retreats 30 | . 4 . . 1 . . 1 . . . . 4 2 3 2 1 6 . . . 6 Traps | -11 -10 -10 -9 -8 -8 -8 -7 -7 -7 -7 -6 -6 -6 -6 -6 -6 -5 -5 -5 -5 -4 ------- Run | Scr Mat Min Mat Mat Gar Mat Fac Low Low Dat Pro Fac Ext Cet Arc Hub Fac Upp Upp War Pro Traps Triggered 16 | . 1 . . 3 5 . 1 . . . . 4 1 . . . . . . 1 . Indirectly . | . . . . . . . . . . . . . . . . . . . . . . Trap Hack Attempts . | . . . . . . . . . . . . . . . . . . . . . . Triggered . | . . . . . . . . . . . . . . . . . . . . . . Disarmed . | . . . . . . . . . . . . . . . . . . . . . . Reprogrammed . | . . . . . . . . . . . . . . . . . . . . . . Reused . | . . . . . . . . . . . . . . . . . . . . . . Traps Extracted . | . . . . . . . . . . . . . . . . . . . . . . Installed . | . . . . . . . . . . . . . . . . . . . . . . Triggered 3 | . . . . . . . . 2 1 . . . . . . . . . . . . Machines | -11 -10 -10 -9 -8 -8 -8 -7 -7 -7 -7 -6 -6 -6 -6 -6 -6 -5 -5 -5 -5 -4 ---------- Run | Scr Mat Min Mat Mat Gar Mat Fac Low Low Dat Pro Fac Ext Cet Arc Hub Fac Upp Upp War Pro Machines Disabled 52 | . . 3 2 8 2 2 2 . . . . 11 1 4 1 1 15 . . . . Max in Single Turn 8 | . . 3 1 8 1 1 1 . . . . 6 . 1 1 1 8 . . . . Garrison Access 3 | . . . . . . 1 . . . . . 1 . . . . 1 . . . . Garrison Relay 2 | . . . . . 2 . . . . . . . . . . . . . . . . Machines Sabotaged . | . . . . . . . . . . . . . . . . . . . . . . Garrisons Compromised . | . . . . . . . . . . . . . . . . . . . . . . Overloaded Fab Kills . | . . . . . . . . . . . . . . . . . . . . . . Fab Network Shutdowns . | . . . . . . . . . . . . . . . . . . . . . . Hacking | -11 -10 -10 -9 -8 -8 -8 -7 -7 -7 -7 -6 -6 -6 -6 -6 -6 -5 -5 -5 -5 -4 --------- Run | Scr Mat Min Mat Mat Gar Mat Fac Low Low Dat Pro Fac Ext Cet Arc Hub Fac Upp Upp War Pro Machines Accessed 59 | . 7 1 8 10 . 4 5 1 . 4 . 4 8 2 . 1 2 . 2 . . Terminals 38 | . 6 . 6 7 . 2 3 . . . . 3 8 2 . 1 . . . . . Fabricators 3 | . . . . . . . 2 . . . . . . . . . 1 . . . . Repair Stations 2 | . 1 . . 1 . . . . . . . . . . . . . . . . . Recycling Units 2 | . . . 1 . . 1 . . . . . . . . . . . . . . . Scanalyzers 3 | . . . 1 1 . 1 . . . . . . . . . . . . . . . Garrison Access 3 | . . . . 1 . . . . . . . 1 . . . . 1 . . . . Total Hacks 187 | . 18 1 35 35 . 13 14 1 . 25 . 8 16 6 . 1 3 . 11 . . Successful 122 | . 13 1 17 23 . 5 10 1 . 25 . 5 7 1 . . 3 . 11 . . Failed 65 | . 5 . 18 12 . 8 4 . . . . 3 9 5 . 1 . . . . . Catastrophic 8 | . . . 1 1 . 1 1 . . . . . 3 . . 1 . . . . . Database Lockouts . | . . . . . . . . . . . . . . . . . . . . . . Manual 59 | . 5 . 18 12 . 7 7 . . . . 4 6 . . . . . . . . Terminals 109 | . 16 . 30 16 . 7 10 . . . . 7 16 6 . 1 . . . . . Fabricators 6 | . . . . . . . 4 . . . . . . . . . 2 . . . . Repair Stations 7 | . 2 . . 5 . . . . . . . . . . . . . . . . . Recycling Units 6 | . . . 2 . . 4 . . . . . . . . . . . . . . . Scanalyzers 18 | . . . 3 13 . 2 . . . . . . . . . . . . . . . Garrison Access 3 | . . . . 1 . . . . . . . 1 . . . . 1 . . . . Terminal Hacks 69 | . 7 1 10 3 . . 4 1 . 25 . 2 4 1 . . . . 11 . . Record 24 | . . . . . . . . . . 11 . 1 1 1 . . . . 10 . . Part Schematic 5 | . . . . . . . 1 . . 4 . . . . . . . . . . . Robot Schematic 7 | . . . . . . . . . . 7 . . . . . . . . . . . Robot Analysis 1 | . . . 1 . . . . . . . . . . . . . . . . . . Prototype ID Bank 6 | . 1 . 1 . . . 1 . . 3 . . . . . . . . . . . Open Door 3 | . . 1 . . . . . 1 . . . . . . . . . . 1 . . Branch Access Points 4 | . . . 1 1 . . 1 . . . . . 1 . . . . . . . . Emergency Access Points 1 | . 1 . . . . . . . . . . . . . . . . . . . . Terminal Index 4 | . . . 1 1 . . 1 . . . . 1 . . . . . . . . . Alert Level 2 | . 1 . 1 . . . . . . . . . . . . . . . . . . Locate Traps 6 | . 2 . 2 1 . . . . . . . . 1 . . . . . . . . Dispatch Records 1 | . . . 1 . . . . . . . . . . . . . . . . . . Hauler Manifests 2 | . . . 1 . . . . . . . . . 1 . . . . . . . . Zone Layout 3 | . 2 . 1 . . . . . . . . . . . . . . . . . . Fabricator Hacks 5 | . . . . . . . 3 . . . . . . . . . 2 . . . . Network Status 1 | . . . . . . . 1 . . . . . . . . . . . . . . Load Schematic 2 | . . . . . . . 1 . . . . . . . . . 1 . . . . Build 2 | . . . . . . . 1 . . . . . . . . . 1 . . . . Repair Station Hacks 6 | . 2 . . 4 . . . . . . . . . . . . . . . . . Scan Component 3 | . 1 . . 2 . . . . . . . . . . . . . . . . . Repair 3 | . 1 . . 2 . . . . . . . . . . . . . . . . . Recycling Unit Hacks 2 | . . . . . . 2 . . . . . . . . . . . . . . . Report Inventory 1 | . . . . . . 1 . . . . . . . . . . . . . . . Retrieve Components 1 | . . . . . . 1 . . . . . . . . . . . . . . . Scanalyzer 16 | . . . 2 12 . 2 . . . . . . . . . . . . . . . Insert Component 7 | . . . 1 5 . 1 . . . . . . . . . . . . . . . Analyze 9 | . . . 1 7 . 1 . . . . . . . . . . . . . . . Garrison Access Hacks 3 | . . . . 1 . . . . . . . 1 . . . . 1 . . . . Unlock Access 1 | . . . . 1 . . . . . . . . . . . . . . . . . Seal Access 2 | . . . . . . . . . . . . 1 . . . . 1 . . . . Unauthorized Hacks 21 | . 4 . 5 3 . 1 3 . . . . 2 3 . . . . . . . . Terminals 21 | . 4 . 5 3 . 1 3 . . . . 2 3 . . . . . . . . Assimilate 1 | . 1 . . . . . . . . . . . . . . . . . . . . Botnet 17 | . 2 . 4 3 . 1 2 . . . . 2 3 . . . . . . . . Operators 3 | . 1 . 1 . . . 1 . . . . . . . . . . . . . . Fabricators . | . . . . . . . . . . . . . . . . . . . . . . Repair Stations . | . . . . . . . . . . . . . . . . . . . . . . Recycling Units . | . . . . . . . . . . . . . . . . . . . . . . Scanalyzers . | . . . . . . . . . . . . . . . . . . . . . . Garrison Access . | . . . . . . . . . . . . . . . . . . . . . . Data Cores Recovered . | . . . . . . . . . . . . . . . . . . . . . . Used . | . . . . . . . . . . . . . . . . . . . . . . Hacking Detections 44 | . 6 . 8 8 . 3 5 . . . . 3 7 2 . 1 1 . . . . Full Trace Events 3 | . . . . . . . 1 . . . . 1 1 . . . . . . . . Feedback Events . | . . . . . . . . . . . . . . . . . . . . . . Feedback Blocked . | . . . . . . . . . . . . . . . . . . . . . . Robot Schematics Acquired 7 | . . . . . . . . . . 7 . . . . . . . . . . . Robots Built 1 | . . . . . . . 1 . . . . . . . . . . . . . . Matter 219 | . . . . . . . 219 . . . . . . . . . . . . . . Time 116 | . . . . . . . 116 . . . . . . . . . . . . . . Total Robot Build Rating 3 | . . . . . . . 3 . . . . . . . . . . . . . . Part Schematics Acquired 12 | . . . 1 5 . 1 1 . . 4 . . . . . . . . . . . Parts Built 1 | . . . . . . . . . . . . . . . . . 1 . . . . Matter 318 | . . . . . . . . . . . . . . . . . 318 . . . . Time 84 | . . . . . . . . . . . . . . . . . 84 . . . . Total Part Build Rating 6 | . . . . . . . . . . . . . . . . . 6 . . . . Parts Repaired 3 | . 1 . . 2 . . . . . . . . . . . . . . . . . Time 84 | . 26 . . 58 . . . . . . . . . . . . . . . . . Parts Recycled . | . . . . . . . . . . . . . . . . . . . . . . Recycled Matter . | . . . . . . . . . . . . . . . . . . . . . . Retrieved Matter . | . . . . . . . . . . . . . . . . . . . . . . Retrieved Components 10 | . . . . . . 10 . . . . . . . . . . . . . . . Parts Scanalyzed 7 | . . . 1 5 . 1 . . . . . . . . . . . . . . . Part Schematics Acquired 7 | . . . 1 5 . 1 . . . . . . . . . . . . . . . Parts Damaged 2 | . . . . 1 . 1 . . . . . . . . . . . . . . . Bothacking | -11 -10 -10 -9 -8 -8 -8 -7 -7 -7 -7 -6 -6 -6 -6 -6 -6 -5 -5 -5 -5 -4 ------------ Run | Scr Mat Min Mat Mat Gar Mat Fac Low Low Dat Pro Fac Ext Cet Arc Hub Fac Upp Upp War Pro Used RIF Installer 1 | . . . . . 1 . . . . . . . . . . . . . . . . Robots Hacked 5 | . . . . . . 4 1 . . . . . . . . . . . . . . Non-combat 4 | . . . . . . 4 . . . . . . . . . . . . . . . Combat 1 | . . . . . . . 1 . . . . . . . . . . . . . . Robot Hacks Applied 7 | . . . . . . 6 1 . . . . . . . . . . . . . . parse_system 1 | . . . . . . 1 . . . . . . . . . . . . . . . ignore_parts 3 | . . . . . . 3 . . . . . . . . . . . . . . . purge_threat 2 | . . . . . . 2 . . . . . . . . . . . . . . . formatsys_high 1 | . . . . . . . 1 . . . . . . . . . . . . . . Relay Couplers Released 11 | . . . . . 8 3 . . . . . . . . . . . . . . . Machine Destruction 11 | . . . . . 8 3 . . . . . . . . . . . . . . . Attached 2 | . . . . . . 1 1 . . . . . . . . . . . . . . Robots Rewired 4 | . . . . 1 . . . . . . . . 3 . . . . . . . . Allies Hacked . | . . . . . . . . . . . . . . . . . . . . . . Hacks Repelled . | . . . . . . . . . . . . . . . . . . . . . . Allies | -11 -10 -10 -9 -8 -8 -8 -7 -7 -7 -7 -6 -6 -6 -6 -6 -6 -5 -5 -5 -5 -4 -------- Run | Scr Mat Min Mat Mat Gar Mat Fac Low Low Dat Pro Fac Ext Cet Arc Hub Fac Upp Upp War Pro Total Allies 12 | . 1 . . 1 . . 2 . . . 1 . 7 . . . . . . . . Largest Group 5 | . 1 1 1 1 . . 2 1 . . 1 1 5 4 . . . . . . . Highest-Rated Group 193 | . 10 10 10 15 . . 52 32 . . 94 94 193 119 . . . . . . . Highest-Rated Ally 156 | . 10 10 10 15 . . 32 32 . . 94 94 156 37 . . . . . . . Total Orders 10 | . . 2 . . . . 3 . . . . . . . . . 3 2 . . . STAY 1 | . . 1 . . . . . . . . . . . . . . . . . . . FOLLOW 2 | . . 1 . . . . 1 . . . . . . . . . . . . . . AID 2 | . . . . . . . 2 . . . . . . . . . . . . . . EXPLORE 4 | . . . . . . . . . . . . . . . . . 2 2 . . . RETURN 1 | . . . . . . . . . . . . . . . . . 1 . . . . Ally Attacks 124 | . . . . . . . 10 2 . . 7 4 51 37 . . . . . . 13 Total Damage 2678 | . . . . . . . 388 56 . . 182 183 1069 468 . . . . . . 332 Kills 20 | . . . . . . . 2 . . . . . 10 6 . . . . . . 2 Allies Corrupted . | . . . . . . . . . . . . . . . . . . . . . . Allies Melted 1 | . . . . . . . . . . . . . . . 1 . . . . . . Intel | -11 -10 -10 -9 -8 -8 -8 -7 -7 -7 -7 -6 -6 -6 -6 -6 -6 -5 -5 -5 -5 -4 ------- Run | Scr Mat Min Mat Mat Gar Mat Fac Low Low Dat Pro Fac Ext Cet Arc Hub Fac Upp Upp War Pro Robot Analysis Total 1 | . . . 1 . . . . . . . . . . . . . . . . . . Derelict Logs Recovered 9 | . . . . . . . . 2 1 . 1 . . . . . . 2 2 . 1 Drone Launches 6 | . . . . . . . . . . . . . . . . . 2 2 . . 2 Drone Recoveries 1 | . . . . . . . . . . . . . . . . . . 1 . . . Exploration | -11 -10 -10 -9 -8 -8 -8 -7 -7 -7 -7 -6 -6 -6 -6 -6 -6 -5 -5 -5 -5 -4 ------------- Run | Scr Mat Min Mat Mat Gar Mat Fac Low Low Dat Pro Fac Ext Cet Arc Hub Fac Upp Upp War Pro Turns Passed 17532 | 58 1205 170 1086 1952 840 907 1174 676 822 90 573 1137 924 782 138 295 1883 644 1106 152 918 Spaces Moved 9082 | 39 568 96 455 803 266 384 774 450 678 82 460 661 603 368 71 131 726 306 611 89 461 Core 5 | 5 . . . . . . . . . . . . . . . . . . . . . Treads 4177 | . . . 372 803 266 205 . . . . . . . 329 43 100 648 306 611 89 405 Legs 2090 | 34 563 96 83 . . . . . . . . 607 603 39 28 31 . . . . 6 Wheels 2810 | . 5 . . . . 179 774 450 678 82 460 54 . . . . 78 . . . 50 Hover . | . . . . . . . . . . . . . . . . . . . . . . Flight . | . . . . . . . . . . . . . . . . . . . . . . Fastest Speed 50 | 50 120 150 180 160 160 100 86 110 110 110 110 110 120 120 110 110 130 170 170 170 120 Average Speed 144 | 111 169 154 180 181 182 151 95 110 110 110 110 121 120 155 144 148 164 170 170 170 164 Slowest Speed 210 | 120 180 180 200 200 185 200 110 110 110 110 110 150 120 160 160 180 185 170 170 170 210 Overloaded Moves . | . . . . . . . . . . . . . . . . . . . . . . Propulsion Burnouts . | . . . . . . . . . . . . . . . . . . . . . . Robots Hopped . | . . . . . . . . . . . . . . . . . . . . . . Cave-ins Triggered . | . . . . . . . . . . . . . . . . . . . . . . Exploration Rate (%) 48 | 3 89 26 40 60 42 33 17 52 71 70 71 16 70 78 87 15 25 72 72 17 51 Regions Visited 21 Branch Regions 13 Pre-discovered Areas 3 | . . . . . . . . . . 1 . . . . . . . . 1 . 1 Known Exits Taken 12 | . . . . 1 . . 1 1 1 1 1 1 1 1 1 1 . 1 . . . Unknown Exits Taken 8 | 1 1 1 1 . . 1 . . . . . . . . . . 1 . 1 1 . Scrap Searched 13 | . . . . . . . . 2 2 . 1 . . . . . . 4 2 . 2 Spaces Dug 14 | . . . . . . . 6 2 . . . . . . . . 2 4 . . . Terrain Destroyed 389 | . 21 8 3 50 46 12 6 6 4 . 24 49 1 33 . 5 93 4 5 . 19 Melee 11 | . . . . . . . 6 2 . . . . . . . . 2 1 . . . Projectile 75 | . . . . . . 3 . . . . . 4 1 9 . 5 30 3 5 . 15 AOE 303 | . 21 8 3 50 46 9 . 4 4 . 24 45 . 24 . . 61 . . . 4 Terrain Rammed . | . . . . . . . . . . . . . . . . . . . . . . Walls Destroyed . | . . . . . . . . . . . . . . . . . . . . . . Machines Disabled . | . . . . . . . . . . . . . . . . . . . . . . Actions | -11 -10 -10 -9 -8 -8 -8 -7 -7 -7 -7 -6 -6 -6 -6 -6 -6 -5 -5 -5 -5 -4 --------- Run | Scr Mat Min Mat Mat Gar Mat Fac Low Low Dat Pro Fac Ext Cet Arc Hub Fac Upp Upp War Pro Total 12227 | 51 733 106 630 1143 562 596 1163 621 741 81 514 854 751 482 95 188 1187 427 662 89 551 Wait 1731 | . 66 1 48 175 222 106 301 150 38 . 41 55 35 23 19 17 250 106 40 . 38 Move 9062 | 38 567 95 454 803 265 383 773 449 677 81 459 660 602 367 70 130 725 305 610 88 461 Hop . | . . . . . . . . . . . . . . . . . . . . . . Pick Up 128 | 7 14 . 19 11 7 11 11 4 6 . . 5 10 3 . 4 12 3 1 . . Fast Attach 123 | 5 7 . 7 16 2 4 5 2 . . . 22 7 11 1 8 23 1 . . 2 Attach 63 | 1 3 . 3 2 7 6 1 . 4 . . 7 1 5 . 4 9 1 . . 9 Detach 40 | . 3 . 5 3 1 2 4 . 2 . . 1 1 5 . 2 10 1 . . . Swap 166 | . 2 4 8 21 14 12 26 6 2 . 5 16 12 11 . . 17 3 2 1 4 Drop 159 | . 10 . 25 24 2 10 13 5 4 . . 11 24 8 . 2 16 4 1 . . Fire 665 | . 61 6 52 85 31 54 18 2 8 . 9 69 33 49 5 20 121 2 8 . 32 Melee 40 | . . . 9 . 1 8 11 3 . . . . . . . 1 2 1 . . 4 Ram 1 | . . . . . . . . . . . . . . . . . . . . . 1 Kick 1 | . . . . . . . . . . . . . 1 . . . . . . . . Crush 1 | . . . . . . . . . . . . . . . . . 1 . . . . Escape Stasis 22 | . . . . . 10 . . . . . . 8 4 . . . . . . . . Rewire 25 | . . . . 3 . . . . . . . . 21 . . . 1 . . . . Trap . | . . . . . . . . . . . . . . . . . . . . . . Miscellaneous . | . . . . . . . . . . . . . . . . . . . . . . Route ------- -11/Scrapyard -10/Materials (discovered 4 exits: *Mat x3 / *Min) -10/Mines -9/Materials (discovered 3 exits: *Mat / Min x2) -8/Materials (discovered 4 exits: *Fac x3 / Gar) -8/Garrison -8/Materials -7/Factory (discovered 5 exits: *Fac x2 / Sto / *Low x2) -7/Lower Caves -7/Lower Caves (discovered 2 exits: *Fac / *Dat) -7/Data Miner -6/Proximity Caves -6/Factory (discovered 4 exits: Fac / [*Low] / *Ext x2) -6/Extension (discovered 3 exits: *Fac x2 / *Cet) -6/Cetus (discovered 3 exits: *Fac x2 / *Arc) -6/Archives (discovered 2 exits: *Fac / *Hub) -6/Hub_04(d) -5/Factory -5/Upper Caves -5/Upper Caves (discovered 2 exits: [*Fac] / [*War]) -5/Warlord -4/Proximity Caves History --------- Turn | Location | Event 3 | -11/Scrapyard | Discovered new exit (range 15) 59 | -11/Scrapyard | Entered Materials 306 | -10/Materials | Build established: Mutant 344 | -10/Materials | Discovered new exit (range 10) 442 | -10/Materials | Discovered new exit (range 12) 442 | -10/Materials | Discovered new exit (range 13) 897 | -10/Materials | Repaired Aluminum Leg 913 | -10/Materials | Discovered new exit (range 3) 992 | -10/Materials | Core integrity fell below 50% 1264 | -10/Materials | Entered Mines 1264 | -10/Mines | Accompanied by 1 ally 1388 | -10/Mines | Discovered new exit (range 14) 1405 | -10/Mines | Met a Derelict who couldn't figure out how to use a Trap Extractor 1434 | -10/Mines | Entered Materials 1434 | -9/Materials | Accompanied by 1 ally 1434 | -9/Materials | Evolved 2 slots: Utility x2 2319 | -9/Materials | Discovered new exit (range 4) 2389 | -9/Materials | Identified exit to Mines 2520 | -9/Materials | Entered another Materials area 2520 | -8/Materials | Evolved 2 slots: Utility x2 2899 | -8/Materials | Repaired Imp. Treads 2928 | -8/Materials | Repaired Lgt. Treads 2950 | -8/Materials | Discovered new exit (range 15) 3433 | -8/Materials | Discovered new exit (range 10) 4077 | -8/Materials | Discovered new exit (range 15) 4472 | -8/Materials | Identified exit to Garrison 4472 | -8/Materials | Entered Garrison 4481 | -8/Garrison | Installed Relay Interface Framework 4732 | -8/Garrison | Triggered checkpoint 4841 | -8/Garrison | Garrison Relay disabled 4847 | -8/Garrison | Lost 6 parts (1p2n1u2w) 4998 | -8/Garrison | Triggered checkpoint 5047 | -8/Garrison | Garrison Relay disabled 5240 | -8/Garrison | Discovered new exit (range 10) 5312 | -8/Garrison | Entered Materials 5897 | -8/Materials | Garrison activated, responded to threat 5935 | -8/Materials | Core integrity fell below 50% 6089 | -8/Materials | Lost 5 parts (1p2n1u1w) 6214 | -8/Materials | Discovered new exit (range 6) 6219 | -8/Materials | Entered Factory 6219 | -7/Factory | Evolved 2 slots: Propulsion x2 6512 | -7/Factory | Fabricated M-28 Smith (x1) 6829 | -7/Factory | Identified exit to Storage 6829 | -7/Factory | Identified exit to Lower Caves 7001 | -7/Factory | Discovered new exit (range 5) 7016 | -7/Factory | Discovered new exit (range 16) 7393 | -7/Factory | Entered Lower Caves 7393 | -7/Lower Caves | Accompanied by 1 ally 7430 | -7/Lower Caves | Encountered a Warlord checkpoint 7487 | -7/Lower Caves | Learned 12 Factory zone layouts 7896 | -7/Lower Caves | Learned location of 1 exit from Factory 7924 | -7/Lower Caves | Imp. Carbon-fiber Leg stolen by Master Thief 7975 | -7/Lower Caves | Found Alien Artifact 8065 | -7/Lower Caves | Discovered new exit (range 5) 8068 | -7/Lower Caves | Identified exit to Lower Caves 8069 | -7/Lower Caves | Entered another Lower Caves area 8070 | -7/Lower Caves | Encountered a Warlord checkpoint 8071 | -7/Lower Caves | Attracted the attention of an 0b10 checkpoint 8077 | -7/Lower Caves | Discovered new exit (range 9) 8107 | -7/Lower Caves | Identified exit to Factory 8363 | -7/Lower Caves | Identified Core Expander 8363 | -7/Lower Caves | Installed Core Expander, added new Propulsion slot 8846 | -7/Lower Caves | Identified exit to Data Miner 8891 | -7/Lower Caves | Entered Data Miner 8891 | -7/Data Miner | Discovered new exit (range 6) 8912 | -7/Data Miner | Met Data Miner 8938 | -7/Data Miner | Learned location of Section 7 (-2) 8938 | -7/Data Miner | Acquired the access code to Warlord's prototype stash 8956 | -7/Data Miner | Received God Mode back door access code from Data Miner 8979 | -7/Data Miner | Identified exit to Proximity Caves 8981 | -7/Data Miner | Entered Proximity Caves 9012 | -6/Proximity Caves | Learned Factory stockpile data 9053 | -6/Proximity Caves | Escorted by Enhanced Grunt 9531 | -6/Proximity Caves | Discovered exit to Factory (range 14) 9554 | -6/Proximity Caves | Entered Factory 9554 | -6/Factory | Accompanied by 1 ally 9554 | -6/Factory | Evolved 2 slots: Power x1, Utility x1 9555 | -6/Factory | Identified exit to Extension 9556 | -6/Factory | Identified exit to Factory 9653 | -6/Factory | Lost 3 parts (2n1u) 9851 | -6/Factory | Garrison activated, responded to threat 9951 | -6/Factory | Build established: Scavenger-Mutant 10564 | -6/Factory | Discovered new exit (range 15) 10691 | -6/Factory | Entered Extension 10738 | -6/Extension | Rescued A7 10790 | -6/Extension | Rescued a captive Derelict 10947 | -6/Extension | Identified exit to Cetus 10955 | -6/Extension | Spotted B-75 Beast 10999 | -6/Extension | Spotted B-75 Beast 11021 | -6/Extension | Allies destroyed B-75 Beast 11029 | -6/Extension | Destroyed B-75 Beast 11085 | -6/Extension | Discovered exit to Factory (range 3) 11381 | -6/Extension | Rescued a captive Derelict 11382 | -6/Extension | Rescued a captive Derelict 11510 | -6/Extension | Discovered exit to Factory (range 10) 11615 | -6/Extension | Entered Cetus 11615 | -6/Cetus | Accompanied by 4 allies 11637 | -6/Cetus | Spotted Cetus Guard 11637 | -6/Cetus | Spotted Cetus Guard 11640 | -6/Cetus | Allies destroyed Cetus Guard 11640 | -6/Cetus | Spotted Cetus Guard 11656 | -6/Cetus | Spotted Cetus Guard 11659 | -6/Cetus | Destroyed Cetus Guard 11660 | -6/Cetus | Allies destroyed Cetus Guard 11662 | -6/Cetus | Allies destroyed Cetus Guard 11997 | -6/Cetus | Discovered exit to Factory (range 16) 12099 | -6/Cetus | Destroyed 8 combat bots 12147 | -6/Cetus | Discovered new exit (range 16) 12169 | -6/Cetus | Identified exit to Archives 12202 | -6/Cetus | Spotted Cetus Guard 12203 | -6/Cetus | Spotted Cetus Guard 12206 | -6/Cetus | Destroyed Cetus Guard 12206 | -6/Cetus | Spotted Cetus Guard 12211 | -6/Cetus | Spotted Cetus Guard 12225 | -6/Cetus | Destroyed Cetus Guard 12237 | -6/Cetus | Destroyed Cetus Guard 12258 | -6/Cetus | Destroyed Cetus Guard 12282 | -6/Cetus | Lost 6 parts (2p2n1u1w) 12293 | -6/Cetus | Discovered exit to Factory (range 16) 12304 | -6/Cetus | Met Revision 17 12397 | -6/Cetus | Entered Archives 12429 | -6/Archives | Met Zhirov 12435 | -6/Archives | Reinforcements dispatched to Archives 12449 | -6/Archives | Unable to access archive contents 12480 | -6/Archives | Reinforcements dispatched to Archives 12482 | -6/Archives | Zhirov warped through subspace 12499 | -6/Archives | Discovered new exit (range 13) 12500 | -6/Archives | Zhirov detonated Archives 12501 | -6/Archives | Core integrity fell below 50% 12509 | -6/Archives | Discovered exit to Factory (range 16) 12531 | -6/Archives | Lost 8 parts (2p3n1u2w) 12534 | -6/Archives | Identified exit to Hub_04(d) 12535 | -6/Archives | Entered Hub_04(d) 12801 | -6/Hub_04(d) | Discovered exit to Factory (range 5) 12830 | -6/Hub_04(d) | Entered Factory 12830 | -5/Factory | Evolved 2 slots: Utility x2 12866 | -5/Factory | Build established: Mutant 13059 | -5/Factory | Spotted B-75 Beast 13085 | -5/Factory | Destroyed B-75 Beast 13130 | -5/Factory | First assault squad dispatched 13240 | -5/Factory | Destroyed 8 combat bots 13248 | -5/Factory | Lost 3 parts (1p1n1u) 13302 | -5/Factory | Lost 5 parts (1p2n1u1w) 13680 | -5/Factory | Build established: Scavenger-Mutant 13800 | -5/Factory | Lost 3 parts (1u2w) 14130 | -5/Factory | Discovered new exit (range 111) 14490 | -5/Factory | Fabricated Combat Drone Bay? 14645 | -5/Factory | Incoming assault squad redirected 14657 | -5/Factory | Incoming assault squad redirected 14713 | -5/Factory | Entered Upper Caves 14868 | -5/Upper Caves | Identified exit to Upper Caves 15273 | -5/Upper Caves | Learned 4 Factory zone layouts 15357 | -5/Upper Caves | Entered another Upper Caves area 15358 | -5/Upper Caves | Encountered a Warlord checkpoint 15432 | -5/Upper Caves | Discovered new exit (range 14) 16223 | -5/Upper Caves | Learned Armory trap positions 16223 | -5/Upper Caves | Learned Armory stockpile data 16223 | -5/Upper Caves | Learned Research security intel 16223 | -5/Upper Caves | Learned Factory terminal intel 16223 | -5/Upper Caves | Learned Research terminal intel 16223 | -5/Upper Caves | Learned Armory terminal intel 16460 | -5/Upper Caves | Discovered new exit (range 2) 16463 | -5/Upper Caves | Entered Warlord 16551 | -5/Warlord | RIF detected upon attempting to enter Warlord's base 16551 | -5/Warlord | Attacked by Warlord forces 16592 | -5/Warlord | Discovered new exit (range 14) 16615 | -5/Warlord | Entered Proximity Caves 16670 | -4/Proximity Caves | Lost 3 parts (1p2u) 17317 | -4/Proximity Caves | Attracted the attention of an 0b10 outpost 17385 | -4/Proximity Caves | Learned location of Quarantine (-2) 17439 | -4/Proximity Caves | Snuck into a huge 0b10 base via the rear entrance 17444 | -4/Proximity Caves | Core integrity fell below 50% 17505 | -4/Proximity Caves | Core integrity fell below 20% 17533 | -4/Proximity Caves | Destroyed by H-77 Assassin with Coil Gun Last Messages --------------- 17525_ Penetrated by Slug. 17525_ U-05 Engineer lays Concrete. 17526_ Slug penetrates Reinforced Barrier. 17526_ Penetrated by Slug. 17527_ Slug penetrates Reinforced Barrier. 17527_ Slug penetrates Y-64 Sentinel. 17527_ Y-64 Sentinel destroyed. 17528_ R-10 Processor collects Imp. Treads. 17528_ U-05 Engineer lays Concrete. 17528_ R-10 Processor collects Adv. Heat Sink. 17529_ U-05 Engineer lays Concrete. 17530_ L-61 Swordsman destroyed. 17530_ System corrupted: Enh. Gauss Cannon targeting data glitched. 17530_ L-61 Swordsman destroyed. 17530_ Slug penetrates Reinforced Barrier. 17530_ Penetrated by Slug. 17530_ U-05 Engineer lays Concrete. 17531_ R-10 Processor collects Imp. Treads. 17532_ U-05 Engineer lays Concrete. 17533_ Slug penetrates Reinforced Barrier. Map ----- +----------------------------------------------------+ | ?????????????????????????????????????????????????? | | ?????????????????????????????????????????????????? | | ?????????????????????????????????????????????????? | | ?????????????????????????????????????????????????? | | ?????????????????????????????????????????????????? | | ?????????????????????????????????????????????????? | | ?????????????????????????????????????????????????? | | ?????????????????????????????????????????????????? | | ?????????????????????????????????????????????????? | | ?????????????????????????????????????????????????? | | ?????????????????????????????????????????????????? | | ?????????????????????????????????????????????????? | | ?????????????????????????????????????????????????? | | ?????????????????????????????????????????????????? | | ?????????????????????????????????????????????????? | | ???????????#####????????####?????????????????????? | | ???????????? ???????! ]]?????????????????????? | | ????????" "??? ??????! ??????????????????????? | | ????????" " ?? ?????! /??????????????? ?????? | | ????????" " ## #####;######+##### ???????? | | ???????????? ???????????? | | ???????????????? ???????????????? | | ???????????????????? h ???????????????????? | | ???????????????????????#%%#??????????????????????? | | ???????????????????????# #??????????????????????? | | ???????????????????????# @#??????????????????????? | | ???????????????????????#%%#??????????????????????? | | ???????????????????????#%%#??????????????????????? | | ???????????????????????# #??????????????????????? | | ???????????????????????#R%#??????????????????????? | | ???????????????????????#%R#????????????????#?????? | | ??????????????????###### ###############? #?????? | | ??????????????????# # #? #?????? | | ??????????????????# # #? #?????? | | ??????????????????# # # #?????? | | ??????????????????# % # # #?????? | | ??????????????????# ###//##### #?????? | | ????????? #?????? | | ????????? #?????? | | ??????????######### #######% ##+#?????? | | ??????????????????# #?????#= #????????? | | ?????????????????# u #?????# #????????? | | ?????????????????## #?????# #????????? | | ??????????????????# #?????# #????????? | | ??????????????????###### ## ###?????# #????????? | | ???????????????????????# ?###???????# #????????? | | ???????????????????????# ???????????# #????????? | | ??????????????????????? ???????????# #????????? | | ?????????????????????? ???????????# #????????? | | ?????????????????????###+#???????????# #????????? | +----------------------------------------------------+ Best States ------------- Heat Dissipation 70 Energy Generation 34 Energy Capacity 820 Matter Stores 300 Matter Capacity 300 Sight Range 22 Robot Scan Range 20 Terrain Scan Range 24 Terrain Scan Density 210 Armor Coverage 450 Resistance: KI 20 Resistance: TH 10 Phase Shifting 5 Evasion (%) 45 Targeting Accuracy 16 Recoil Reduction 5 Energy Filtering 30 Particle Charging 25 Kinecelleration 40 Relay Coupler Types 23 Relay Coupler Value 1 Item Schematics ----------------- Imp. Targeting Computer | -9/Materials | Scanalyzed Adv. Sensor Array | -8/Materials | Scanalyzed Imp. Treads | -8/Materials | Scanalyzed Hrd. Light Armor Plating | -8/Materials | Scanalyzed Imp. Medium Laser | -8/Materials | Scanalyzed Rocket Launcher | -8/Materials | Scanalyzed Imp. Signal Interpreter | -8/Materials | Scanalyzed Magnetic Acceleration Cannon | -7/Factory | Hacked Combat Drone Bay | -7/Data Miner | Free Lgt. Regenerative Plating | -7/Data Miner | Free Exp. Flexi-carbon Leg | -7/Data Miner | Free Cloaking Device | -7/Data Miner | Free Robot Schematics ------------------ S-27 Virus | -7/Data Miner | Free G-50 Soldier | -7/Data Miner | Free I-36 Angel | -7/Data Miner | Free L-41 Fighter | -7/Data Miner | Free X-72 Disruptor | -7/Data Miner | Free H-66 Slayer | -7/Data Miner | Free I-47 Archangel | -7/Data Miner | Free Fabricated ------------ M-28 Smith | x1 | -7/Factory | Preloaded Combat Drone Bay | x1 | -5/Factory Alien Tech Used ----------------- Core Expander Achievements -------------- My Command Is Your Wish Prison Break Quantum Hacking Revising The Future Challenges ------------ None Game ------ Seed LayeredForceMapper Manual? 0 Play Time 04:56:57 Cumulative 61.6 hours Start 2020.12.02 @ 20:39:00 End 2020.12.06 @ 12:49:42 Sessions 15 Manual Loads 0 Difficulty Rogue Special Mode None Game No. 19 Rogue 19 Adventurer 0 Explorer 0 Win Type - Total 1 Types 1/0/0/0/0/0/0/0/0 Lore% 44 Gallery% 44 Achievement% 40 Wizard Run 0 Options --------- ASCII 1 Keyboard 1 Movement Vi Keybinds 0 Fullscreen 2 Font 24/Smallcaps Map View 76x50 Tactical HUD 1 Map Filters NONE Filters NONE Steam 1 RUN: ac57af67-f8a6-4f8d-a754-ac18f352dcf4